[Event "Live Chess"]
[Site "Chess.com"]
[Date "2024.06.01"]
[Round "-"]
[White "JanMur7"]
[Black "KeithArkell"]
[Result "1-0"]
[WhiteElo "2313"]
[BlackElo "2462"]
[TimeControl "300"]
[EndTime "12:32:33 PDT"]
[Termination "JanMur7 won by resignation"]

1. Nf3 {[%clk 0:04:53.6]} 1... d5 {[%clk 0:04:58.6]} 2. c4 {[%clk 0:04:52.7]}
2... c6 {[%clk 0:04:57.2]} 3. d4 {[%clk 0:04:51.5]} 3... Nf6 {[%clk 0:04:55.5]}
4. Nc3 {[%clk 0:04:50.5]} 4... Bg4 {[%clk 0:04:54.6]} 5. Ne5 {[%clk 0:04:49.1]}
5... Bf5 {[%clk 0:04:53.5]} 6. Qb3 {[%clk 0:04:47.5]} 6... Qb6 {[%clk
0:04:52.2]} 7. cxd5 {[%clk 0:04:44.4]} 7... Qxb3 {[%clk 0:04:51]} 8. axb3 {[%clk
0:04:44.3]} 8... Nxd5 {[%clk 0:04:49.4]} 9. Nxd5 {[%clk 0:04:41.6]} 9... cxd5
{[%clk 0:04:48.3]} 10. Bf4 {[%clk 0:04:40.8]} 10... f6 {[%clk 0:04:43.9]} 11.
Nd3 {[%clk 0:04:38.9]} 11... Nc6 {[%clk 0:04:40.7]} 12. e3 {[%clk 0:04:36.5]}
12... e6 {[%clk 0:04:37.4]} 13. f3 {[%clk 0:04:26.9]} 13... Nb4 {[%clk
0:04:32.7]} 14. Kd2 {[%clk 0:04:19.3]} 14... Nxd3 {[%clk 0:04:30.3]} 15. Bxd3
{[%clk 0:04:19.2]} 15... Bxd3 {[%clk 0:04:29.8]} 16. Kxd3 {[%clk 0:04:19.1]}
16... Kd7 {[%clk 0:04:28.3]} 17. Rhc1 {[%clk 0:04:16.7]} 17... Bd6 {[%clk
0:04:27.2]} 18. Bxd6 {[%clk 0:04:15]} 18... Kxd6 {[%clk 0:04:27.1]} 19. Rc5
{[%clk 0:04:13.1]} 19... b6 {[%clk 0:04:25.3]} 20. Rc3 {[%clk 0:04:11.4]} 20...
a5 {[%clk 0:04:22.3]} 21. Rac1 {[%clk 0:04:08.8]} 21... Rhd8 {[%clk 0:04:03.1]}
22. Rc7 {[%clk 0:03:43.5]} 22... Rd7 {[%clk 0:03:59]} 23. R1c6+ {[%clk
0:03:42.1]} 23... Ke7 {[%clk 0:03:58.3]} 24. Rxd7+ {[%clk 0:03:42]} 24... Kxd7
{[%clk 0:03:57.7]} 25. Rxb6 {[%clk 0:03:41.9]} 25... a4 {[%clk 0:03:56.5]} 26.
bxa4 {[%clk 0:03:38.5]} 26... Kc7 {[%clk 0:03:55]} 27. Rb4 {[%clk 0:03:36.7]}
27... Kc6 {[%clk 0:03:53]} 28. b3 {[%clk 0:03:35.5]} 28... e5 {[%clk 0:03:52.5]}
29. Rb5 {[%clk 0:03:33.6]} 29... g5 {[%clk 0:03:48]} 30. Rc5+ {[%clk 0:03:27.5]}
30... Kd6 {[%clk 0:03:46.6]} 31. a5 {[%clk 0:03:24.7]} 31... g4 {[%clk
0:03:45.8]} 32. fxg4 {[%clk 0:03:13.3]} 32... Rg8 {[%clk 0:03:37.7]} 33. h3
{[%clk 0:03:10.5]} 33... h5 {[%clk 0:03:36.6]} 34. b4 {[%clk 0:03:04.8]} 34...
hxg4 {[%clk 0:03:35.5]} 35. a6 {[%clk 0:02:59.2]} 35... gxh3 {[%clk 0:03:33.5]}
36. gxh3 {[%clk 0:02:57.2]} 36... exd4 {[%clk 0:03:23.8]} 37. Kxd4 {[%clk
0:02:50.4]} 37... Re8 {[%clk 0:03:20.2]} 38. a7 {[%clk 0:02:42.7]} 1-0

[Event "Live Chess"]
[Site "Chess.com"]
[Date "2024.06.01"]
[Round "-"]
[White "DarranAS"]
[Black "peteopeteo"]
[Result "0-1"]
[WhiteElo "1459"]
[BlackElo "1604"]
[TimeControl "300"]
[EndTime "12:32:39 PDT"]
[Termination "peteopeteo won on time"]

1. e4 {[%clk 0:04:54.7]} 1... c6 {[%clk 0:04:59.4]} 2. d4 {[%clk 0:04:48.1]}
2... d5 {[%clk 0:04:59.3]} 3. e5 {[%clk 0:04:34.6]} 3... Bf5 {[%clk 0:04:58.7]}
4. Bd3 {[%clk 0:04:25.7]} 4... Bxd3 {[%clk 0:04:57.8]} 5. Qxd3 {[%clk
0:04:24.6]} 5... e6 {[%clk 0:04:57.2]} 6. Ne2 {[%clk 0:04:14.8]} 6... Nd7 {[%clk
0:04:56.4]} 7. O-O {[%clk 0:04:11.8]} 7... Ne7 {[%clk 0:04:51.9]} 8. Bg5 {[%clk
0:04:04.6]} 8... h6 {[%clk 0:04:50.4]} 9. Bh4 {[%clk 0:04:03]} 9... Qb6 {[%clk
0:04:47.2]} 10. Nbc3 {[%clk 0:03:45]} 10... Nf5 {[%clk 0:04:44.1]} 11. Bg3
{[%clk 0:03:38.3]} 11... a6 {[%clk 0:04:37.3]} 12. b3 {[%clk 0:03:21.9]} 12...
c5 {[%clk 0:04:36.5]} 13. f4 {[%clk 0:03:02.5]} 13... cxd4 {[%clk 0:04:29.2]}
14. Bf2 {[%clk 0:03:00.6]} 14... Bc5 {[%clk 0:04:24]} 15. Na4 {[%clk 0:02:55]}
15... Qc7 {[%clk 0:04:02.2]} 16. Nxd4 {[%clk 0:02:40.4]} 16... Nxd4 {[%clk
0:03:46.3]} 17. Bxd4 {[%clk 0:02:35.7]} 17... Bxd4+ {[%clk 0:03:45.6]} 18. Qxd4
{[%clk 0:02:30.3]} 18... Qxc2 {[%clk 0:03:44.3]} 19. Rfc1 {[%clk 0:02:24.4]}
19... Qe4 {[%clk 0:03:43]} 20. Qxe4 {[%clk 0:02:16.3]} 20... dxe4 {[%clk
0:03:42.9]} 21. Re1 {[%clk 0:02:06.3]} 21... b5 {[%clk 0:03:40.3]} 22. Nc3
{[%clk 0:02:00.9]} 22... Nc5 {[%clk 0:03:39]} 23. Rad1 {[%clk 0:01:47.9]} 23...
O-O {[%clk 0:03:35.3]} 24. Nxe4 {[%clk 0:01:46.4]} 24... Nxe4 {[%clk 0:03:35.1]}
25. Rxe4 {[%clk 0:01:44.5]} 25... Rad8 {[%clk 0:03:34.9]} 26. Red4 {[%clk
0:01:42.5]} 26... Rxd4 {[%clk 0:03:27.7]} 27. Rxd4 {[%clk 0:01:42.4]} 27... Rc8
{[%clk 0:03:26]} 28. Rd2 {[%clk 0:01:18]} 28... Kf8 {[%clk 0:03:16.8]} 29. Kf2
{[%clk 0:01:16.1]} 29... Ke7 {[%clk 0:03:15.8]} 30. Ke3 {[%clk 0:01:14.8]} 30...
Rd8 {[%clk 0:03:14.9]} 31. Rxd8 {[%clk 0:01:11.3]} 31... Kxd8 {[%clk 0:03:14.8]}
32. Kd4 {[%clk 0:01:10.8]} 32... Kd7 {[%clk 0:03:12.8]} 33. Kc5 {[%clk
0:01:04.8]} 33... Kc7 {[%clk 0:03:12.2]} 34. g4 {[%clk 0:00:58.5]} 34... g6
{[%clk 0:03:10.4]} 35. h4 {[%clk 0:00:55.1]} 35... b4 {[%clk 0:02:56.4]} 36. h5
{[%clk 0:00:45.4]} 36... gxh5 {[%clk 0:02:52.2]} 37. gxh5 {[%clk 0:00:37.3]}
37... Kd7 {[%clk 0:02:47.3]} 38. Kxb4 {[%clk 0:00:34]} 38... Kc6 {[%clk
0:02:47.2]} 39. Ka5 {[%clk 0:00:32.2]} 39... Kd5 {[%clk 0:02:46.1]} 40. Kxa6
{[%clk 0:00:29.6]} 40... Ke4 {[%clk 0:02:45.6]} 41. b4 {[%clk 0:00:28.3]} 41...
Kxf4 {[%clk 0:02:45.5]} 42. b5 {[%clk 0:00:27.8]} 42... Kxe5 {[%clk 0:02:45.4]}
43. b6 {[%clk 0:00:27.1]} 43... f5 {[%clk 0:02:45.3]} 44. b7 {[%clk 0:00:26.1]}
44... f4 {[%clk 0:02:45.2]} 45. b8=Q+ {[%clk 0:00:24.4]} 45... Kf5 {[%clk
0:02:44.6]} 46. Qb5+ {[%clk 0:00:19.7]} 46... e5 {[%clk 0:02:43.6]} 47. Qe2
{[%clk 0:00:13.8]} 47... e4 {[%clk 0:02:41]} 48. Kb5 {[%clk 0:00:12.8]} 48... f3
{[%clk 0:02:40]} 49. Qf2 {[%clk 0:00:10.7]} 49... Kf4 {[%clk 0:02:39]} 50. a4
{[%clk 0:00:08.8]} 50... e3 {[%clk 0:02:38.4]} 51. Qh4+ {[%clk 0:00:06.9]} 51...
Ke5 {[%clk 0:02:36.4]} 52. Qg3+ {[%clk 0:00:05.5]} 52... Ke4 {[%clk 0:02:35.1]}
53. Qg4+ {[%clk 0:00:04.1]} 53... Kd3 {[%clk 0:02:34]} 54. Qd7+ {[%clk
0:00:02.1]} 54... Ke2 {[%clk 0:02:33]} 0-1

[Event "Live Chess"]
[Site "Chess.com"]
[Date "2024.06.01"]
[Round "-"]
[White "f4nomore"]
[Black "cymbalshift"]
[Result "0-1"]
[WhiteElo "1201"]
[BlackElo "1707"]
[TimeControl "300"]
[EndTime "12:32:55 PDT"]
[Termination "cymbalshift won by checkmate"]

1. d4 {[%clk 0:04:56.5]} 1... Nf6 {[%clk 0:04:59.1]} 2. Bg5 {[%clk 0:04:53.1]}
2... e6 {[%clk 0:04:51.4]} 3. Nf3 {[%clk 0:04:50.2]} 3... h6 {[%clk 0:04:49.9]}
4. Bh4 {[%clk 0:04:49]} 4... c5 {[%clk 0:04:44.5]} 5. c3 {[%clk 0:04:47.4]} 5...
Qb6 {[%clk 0:04:36.6]} 6. Qc2 {[%clk 0:04:41.3]} 6... Nc6 {[%clk 0:04:29.3]} 7.
Bxf6 {[%clk 0:04:39]} 7... gxf6 {[%clk 0:04:27.6]} 8. e3 {[%clk 0:04:37.8]} 8...
f5 {[%clk 0:04:11.6]} 9. g3 {[%clk 0:04:35.6]} 9... cxd4 {[%clk 0:04:06.9]} 10.
exd4 {[%clk 0:04:33.2]} 10... Bg7 {[%clk 0:03:52.4]} 11. Na3 {[%clk 0:04:29.6]}
11... d5 {[%clk 0:03:30.3]} 12. Nb5 {[%clk 0:04:17.3]} 12... a6 {[%clk
0:03:24.5]} 13. Nd6+ {[%clk 0:04:15.5]} 13... Ke7 {[%clk 0:03:23.5]} 14. Nxc8+
{[%clk 0:04:12.1]} 14... Raxc8 {[%clk 0:03:22.1]} 15. Be2 {[%clk 0:04:07.1]}
15... Nxd4 {[%clk 0:03:18]} 16. Nxd4 {[%clk 0:04:02.6]} 16... Bxd4 {[%clk
0:03:16.5]} 17. O-O {[%clk 0:03:59]} 17... Bf6 {[%clk 0:03:06.8]} 18. Rab1
{[%clk 0:03:37.8]} 18... h5 {[%clk 0:03:05.1]} 19. Qc1 {[%clk 0:03:28.9]} 19...
h4 {[%clk 0:03:01]} 20. b3 {[%clk 0:03:25.5]} 20... hxg3 {[%clk 0:02:59.1]} 21.
hxg3 {[%clk 0:03:19.3]} 21... Rxc3 {[%clk 0:02:56.5]} 22. Qa3+ {[%clk
0:03:14.5]} 22... Kd8 {[%clk 0:02:38.4]} 23. Rbc1 {[%clk 0:03:01.1]} 23... Rxg3#
{[%clk 0:02:36.5]} 0-1

[Event "Live Chess"]
[Site "Chess.com"]
[Date "2024.06.01"]
[Round "-"]
[White "chessfiction"]
[Black "Duke_of_Bebington"]
[Result "1-0"]
[WhiteElo "2411"]
[BlackElo "1584"]
[TimeControl "300"]
[EndTime "12:33:06 PDT"]
[Termination "chessfiction won by resignation"]

1. e4 {[%clk 0:04:51.5]} 1... e5 {[%clk 0:04:58.3]} 2. Nf3 {[%clk 0:04:50]} 2...
f5 {[%clk 0:04:43.5]} 3. d3 {[%clk 0:04:39.7]} 3... d6 {[%clk 0:04:22.8]} 4. Nc3
{[%clk 0:04:37.4]} 4... Nf6 {[%clk 0:04:20.6]} 5. Bg5 {[%clk 0:04:35.5]} 5...
Be7 {[%clk 0:04:19.3]} 6. Be2 {[%clk 0:04:33.6]} 6... Nc6 {[%clk 0:04:14.4]} 7.
Qd2 {[%clk 0:04:31.1]} 7... Be6 {[%clk 0:04:13.2]} 8. exf5 {[%clk 0:04:28.9]}
8... Bxf5 {[%clk 0:04:11.9]} 9. O-O-O {[%clk 0:04:28.5]} 9... Qd7 {[%clk
0:04:10.1]} 10. d4 {[%clk 0:04:27.7]} 10... e4 {[%clk 0:03:57.9]} 11. Nh4 {[%clk
0:04:03.3]} 11... Bg6 {[%clk 0:03:52.7]} 12. Nxg6 {[%clk 0:03:57.4]} 12... hxg6
{[%clk 0:03:52.6]} 13. Bb5 {[%clk 0:03:05.1]} 13... d5 {[%clk 0:03:41.4]} 14. f3
{[%clk 0:03:00.4]} 14... O-O-O {[%clk 0:03:37.6]} 15. Bxf6 {[%clk 0:02:54.2]}
15... gxf6 {[%clk 0:03:32.1]} 16. fxe4 {[%clk 0:02:53.3]} 16... dxe4 {[%clk
0:03:21.2]} 17. d5 {[%clk 0:02:51.5]} 17... Qg4 {[%clk 0:03:08.6]} 18. h3 {[%clk
0:02:44.8]} 18... Qh5 {[%clk 0:02:59.2]} 19. Qf2 {[%clk 0:02:15.1]} 19... Ne5
{[%clk 0:02:50.9]} 20. Qxa7 {[%clk 0:02:13.7]} 20... c6 {[%clk 0:02:44.7]} 21.
dxc6 {[%clk 0:02:10.4]} 21... Nxc6 {[%clk 0:02:38.8]} 22. Bxc6 {[%clk
0:02:04.2]} 22... bxc6 {[%clk 0:02:38]} 23. Na4 {[%clk 0:01:58.1]} 23... Rxd1+
{[%clk 0:02:19]} 24. Rxd1 {[%clk 0:01:54.8]} 24... Bc5 {[%clk 0:02:02.7]} 25.
Qd7+ {[%clk 0:01:45.1]} 1-0

[Event "Live Chess"]
[Site "Chess.com"]
[Date "2024.06.01"]
[Round "-"]
[White "Hacker_2009"]
[Black "Queensandpawns"]
[Result "1-0"]
[WhiteElo "2225"]
[BlackElo "2376"]
[TimeControl "300"]
[EndTime "12:33:08 PDT"]
[Termination "Hacker_2009 won by checkmate"]

1. e4 {[%clk 0:04:55.5]} 1... c6 {[%clk 0:04:59.9]} 2. d4 {[%clk 0:04:53.5]}
2... d5 {[%clk 0:04:59.6]} 3. e5 {[%clk 0:04:51.9]} 3... Bf5 {[%clk 0:04:57.1]}
4. h4 {[%clk 0:04:48.6]} 4... h5 {[%clk 0:04:56]} 5. Bd3 {[%clk 0:04:47.6]} 5...
Bxd3 {[%clk 0:04:53]} 6. Qxd3 {[%clk 0:04:47.5]} 6... e6 {[%clk 0:04:50.3]} 7.
Nf3 {[%clk 0:04:40.4]} 7... Qa5+ {[%clk 0:04:49.6]} 8. Bd2 {[%clk 0:04:38]} 8...
Qa6 {[%clk 0:04:49.5]} 9. O-O {[%clk 0:04:28.4]} 9... Qxd3 {[%clk 0:04:46.5]}
10. cxd3 {[%clk 0:04:28.1]} 10... Ne7 {[%clk 0:04:46.4]} 11. Nc3 {[%clk
0:04:26.6]} 11... Nd7 {[%clk 0:04:44.2]} 12. Rac1 {[%clk 0:04:13.3]} 12... Nf5
{[%clk 0:04:41.1]} 13. Na4 {[%clk 0:04:07.6]} 13... Be7 {[%clk 0:04:37.7]} 14.
g3 {[%clk 0:04:06]} 14... Rc8 {[%clk 0:04:22]} 15. Nc5 {[%clk 0:04:05]} 15... b6
{[%clk 0:04:20.5]} 16. Nxd7 {[%clk 0:03:56.9]} 16... Kxd7 {[%clk 0:04:20.4]} 17.
Rc2 {[%clk 0:03:51]} 17... c5 {[%clk 0:04:18.8]} 18. dxc5 {[%clk 0:03:48.8]}
18... bxc5 {[%clk 0:04:18.7]} 19. Rfc1 {[%clk 0:03:43.4]} 19... f6 {[%clk
0:04:07.6]} 20. a3 {[%clk 0:03:25.6]} 20... Rb8 {[%clk 0:03:53.4]} 21. b4 {[%clk
0:03:18.9]} 21... cxb4 {[%clk 0:03:41.1]} 22. Rc7+ {[%clk 0:03:16.2]} 22... Kd8
{[%clk 0:03:39.3]} 23. Bxb4 {[%clk 0:03:08.8]} 23... Bxb4 {[%clk 0:03:32.4]} 24.
axb4 {[%clk 0:03:08.7]} 24... Ne7 {[%clk 0:03:28.9]} 25. Rxa7 {[%clk 0:03:03]}
25... Rc8 {[%clk 0:03:08.3]} 26. Rxc8+ {[%clk 0:02:58.4]} 26... Nxc8 {[%clk
0:03:08.2]} 27. Rxg7 {[%clk 0:02:56.9]} 27... fxe5 {[%clk 0:03:05.7]} 28. Nxe5
{[%clk 0:02:55.8]} 28... Rf8 {[%clk 0:03:02.9]} 29. Nc6+ {[%clk 0:02:44.6]}
29... Ke8 {[%clk 0:03:01.3]} 30. Rc7 {[%clk 0:02:44.1]} 30... Nd6 {[%clk
0:02:58.5]} 31. Re7# {[%clk 0:02:42.9]} 1-0

[Event "Live Chess"]
[Site "Chess.com"]
[Date "2024.06.01"]
[Round "-"]
[White "degringolade64"]
[Black "Tushinskiy"]
[Result "1-0"]
[WhiteElo "2128"]
[BlackElo "2241"]
[TimeControl "300"]
[EndTime "12:33:11 PDT"]
[Termination "degringolade64 won by resignation"]

1. e4 {[%clk 0:04:55.6]} 1... e5 {[%clk 0:04:58.9]} 2. Nf3 {[%clk 0:04:53.9]}
2... d6 {[%clk 0:04:58.8]} 3. d4 {[%clk 0:04:51.2]} 3... Bg4 {[%clk 0:04:57.7]}
4. dxe5 {[%clk 0:04:47.8]} 4... Nd7 {[%clk 0:04:56]} 5. exd6 {[%clk 0:04:45.8]}
5... Bxd6 {[%clk 0:04:55.9]} 6. Be2 {[%clk 0:04:41.6]} 6... Qe7 {[%clk
0:04:53.3]} 7. O-O {[%clk 0:04:35.1]} 7... Ngf6 {[%clk 0:04:52.5]} 8. Nc3 {[%clk
0:04:33]} 8... O-O-O {[%clk 0:04:51.5]} 9. h3 {[%clk 0:04:26.2]} 9... Bh5 {[%clk
0:04:50.1]} 10. Be3 {[%clk 0:04:16.2]} 10... Nxe4 {[%clk 0:04:47.6]} 11. Qd5
{[%clk 0:04:00.7]} 11... Nxc3 {[%clk 0:04:41.6]} 12. bxc3 {[%clk 0:04:00.2]}
12... Nf6 {[%clk 0:04:38.5]} 13. Qa5 {[%clk 0:03:54.9]} 13... a6 {[%clk
0:04:31]} 14. Rab1 {[%clk 0:03:36.8]} 14... Nd5 {[%clk 0:04:15.7]} 15. Rxb7
{[%clk 0:03:16.5]} 15... Nxe3 {[%clk 0:03:53.5]} 16. Bxa6 {[%clk 0:03:04.8]}
16... Nxf1 {[%clk 0:03:46.2]} 17. Rxc7+ {[%clk 0:03:03.3]} 1-0

[Event "Live Chess"]
[Site "Chess.com"]
[Date "2024.06.01"]
[Round "-"]
[White "Bob2pen"]
[Black "NeilDruggan73"]
[Result "0-1"]
[WhiteElo "1889"]
[BlackElo "1745"]
[TimeControl "300"]
[EndTime "12:33:24 PDT"]
[Termination "NeilDruggan73 won by resignation"]

1. e4 {[%clk 0:04:56.9]} 1... d6 {[%clk 0:04:56.3]} 2. d4 {[%clk 0:04:55.6]}
2... Nf6 {[%clk 0:04:54.9]} 3. Nc3 {[%clk 0:04:54.6]} 3... g6 {[%clk 0:04:53]}
4. f3 {[%clk 0:04:53.9]} 4... Bg7 {[%clk 0:04:51.9]} 5. Be3 {[%clk 0:04:52.9]}
5... O-O {[%clk 0:04:50.7]} 6. h4 {[%clk 0:04:52.2]} 6... h5 {[%clk 0:04:48.5]}
7. Nh3 {[%clk 0:04:50.2]} 7... c6 {[%clk 0:04:45.4]} 8. Ng5 {[%clk 0:04:48.3]}
8... b5 {[%clk 0:04:43.3]} 9. Bd3 {[%clk 0:04:41.7]} 9... Qa5 {[%clk 0:04:35]}
10. Qd2 {[%clk 0:04:40]} 10... Na6 {[%clk 0:04:25.6]} 11. Ne2 {[%clk 0:04:38.7]}
11... Nb4 {[%clk 0:04:20.7]} 12. c3 {[%clk 0:04:35.3]} 12... Nxd3+ {[%clk
0:04:17.2]} 13. Qxd3 {[%clk 0:04:34.2]} 13... d5 {[%clk 0:04:15.5]} 14. e5
{[%clk 0:04:32.3]} 14... Bf5 {[%clk 0:04:14.3]} 15. Qd2 {[%clk 0:04:29.3]} 15...
Nd7 {[%clk 0:04:05.8]} 16. Rg1 {[%clk 0:04:27.2]} 16... Rac8 {[%clk 0:04:00.1]}
17. g4 {[%clk 0:04:25.4]} 17... hxg4 {[%clk 0:03:53.1]} 18. fxg4 {[%clk
0:04:24.2]} 18... Be4 {[%clk 0:03:47.3]} 19. Ng3 {[%clk 0:04:20.3]} 19... c5
{[%clk 0:03:44]} 20. N5xe4 {[%clk 0:04:13.6]} 20... dxe4 {[%clk 0:03:41.9]} 21.
Nxe4 {[%clk 0:04:12.7]} 21... Rfd8 {[%clk 0:03:37.5]} 22. h5 {[%clk 0:04:03.2]}
22... Nxe5 {[%clk 0:03:36.3]} 23. O-O-O {[%clk 0:03:57.4]} 23... Nf3 {[%clk
0:03:34.7]} 24. Qf2 {[%clk 0:03:51.7]} 24... Nxg1 {[%clk 0:03:33.3]} 25. Rxg1
{[%clk 0:03:50.7]} 25... cxd4 {[%clk 0:03:31.6]} 26. Bxd4 {[%clk 0:03:46.6]}
26... Bxd4 {[%clk 0:03:29]} 0-1

[Event "Live Chess"]
[Site "Chess.com"]
[Date "2024.06.01"]
[Round "-"]
[White "ACM42"]
[Black "resipsa6"]
[Result "0-1"]
[WhiteElo "2205"]
[BlackElo "2039"]
[TimeControl "300"]
[EndTime "12:33:39 PDT"]
[Termination "resipsa6 won by resignation"]

1. e4 {[%clk 0:04:58]} 1... e5 {[%clk 0:04:58.9]} 2. Nf3 {[%clk 0:04:56.8]} 2...
Nf6 {[%clk 0:04:58.1]} 3. Nxe5 {[%clk 0:04:53.9]} 3... d6 {[%clk 0:04:57.1]} 4.
Nf3 {[%clk 0:04:52.6]} 4... Nxe4 {[%clk 0:04:56.1]} 5. d3 {[%clk 0:04:51.9]}
5... Nf6 {[%clk 0:04:54.2]} 6. d4 {[%clk 0:04:51.3]} 6... d5 {[%clk 0:04:53.4]}
7. Bd3 {[%clk 0:04:50.7]} 7... Bd6 {[%clk 0:04:52.9]} 8. O-O {[%clk 0:04:50]}
8... O-O {[%clk 0:04:52.4]} 9. h3 {[%clk 0:04:49.2]} 9... h6 {[%clk 0:04:51.4]}
10. c3 {[%clk 0:04:48.1]} 10... c6 {[%clk 0:04:50.9]} 11. Qc2 {[%clk 0:04:47.4]}
11... Qc7 {[%clk 0:04:48]} 12. Re1 {[%clk 0:04:45.4]} 12... Nbd7 {[%clk
0:04:47.2]} 13. Nbd2 {[%clk 0:04:44.6]} 13... b6 {[%clk 0:04:46.5]} 14. Nf1
{[%clk 0:04:40.5]} 14... Bb7 {[%clk 0:04:45.8]} 15. Ne3 {[%clk 0:04:37.3]} 15...
Rfe8 {[%clk 0:04:44.4]} 16. Bd2 {[%clk 0:04:33.7]} 16... Nf8 {[%clk 0:04:43.3]}
17. Nf5 {[%clk 0:04:31]} 17... Bf4 {[%clk 0:04:39.7]} 18. g3 {[%clk 0:04:19.2]}
18... Bxd2 {[%clk 0:04:30.9]} 19. Qxd2 {[%clk 0:04:16.9]} 19... Ne6 {[%clk
0:04:24.8]} 20. Ne5 {[%clk 0:04:08.5]} 20... Ng5 {[%clk 0:04:17.4]} 21. Kg2
{[%clk 0:03:59]} 21... c5 {[%clk 0:04:14.9]} 22. h4 {[%clk 0:03:55.6]} 22...
Nge4 {[%clk 0:04:09.9]} 23. f3 {[%clk 0:03:53.5]} 23... Nxd2 {[%clk 0:04:08.4]}
0-1

[Event "Live Chess"]
[Site "Chess.com"]
[Date "2024.06.01"]
[Round "-"]
[White "WorcesterYork"]
[Black "bobby_jamesFischer86"]
[Result "1-0"]
[WhiteElo "2514"]
[BlackElo "1621"]
[TimeControl "300"]
[EndTime "12:33:56 PDT"]
[Termination "WorcesterYork won by checkmate"]

1. d4 {[%clk 0:04:59.9]} 1... d5 {[%clk 0:04:56.2]} 2. c4 {[%clk 0:04:58.9]}
2... c6 {[%clk 0:04:48.7]} 3. Nf3 {[%clk 0:04:57.3]} 3... Nf6 {[%clk 0:04:43.1]}
4. Nc3 {[%clk 0:04:57.2]} 4... e6 {[%clk 0:04:40.4]} 5. Bg5 {[%clk 0:04:56.2]}
5... Be7 {[%clk 0:04:39]} 6. e3 {[%clk 0:04:54.3]} 6... O-O {[%clk 0:04:36.7]}
7. Rc1 {[%clk 0:04:52.9]} 7... Nbd7 {[%clk 0:04:34.3]} 8. Qc2 {[%clk 0:04:52.1]}
8... dxc4 {[%clk 0:04:30.4]} 9. Bxc4 {[%clk 0:04:50.4]} 9... b5 {[%clk
0:04:28.3]} 10. Bd3 {[%clk 0:04:49.7]} 10... Bb7 {[%clk 0:04:27]} 11. O-O {[%clk
0:04:47.8]} 11... h6 {[%clk 0:04:25.4]} 12. Bxf6 {[%clk 0:04:46.2]} 12... Bxf6
{[%clk 0:04:24]} 13. Ne4 {[%clk 0:04:46.1]} 13... Be7 {[%clk 0:04:20.1]} 14.
Rfd1 {[%clk 0:04:43.5]} 14... Nf6 {[%clk 0:04:18.2]} 15. Nc5 {[%clk 0:04:42]}
15... Bxc5 {[%clk 0:04:13.7]} 16. Qxc5 {[%clk 0:04:41.9]} 16... Qd5 {[%clk
0:04:09.1]} 17. b3 {[%clk 0:04:40.8]} 17... Qxc5 {[%clk 0:04:07.2]} 18. Rxc5
{[%clk 0:04:40.7]} 18... Nd7 {[%clk 0:03:54.9]} 19. Rc2 {[%clk 0:04:39.1]} 19...
Rac8 {[%clk 0:03:52.8]} 20. Rdc1 {[%clk 0:04:38.4]} 20... Rfd8 {[%clk
0:03:50.2]} 21. Be4 {[%clk 0:04:37]} 21... Nf6 {[%clk 0:03:36.3]} 22. Bxc6
{[%clk 0:04:35.4]} 22... Bxc6 {[%clk 0:03:35.1]} 23. Rxc6 {[%clk 0:04:35.3]}
23... Rxc6 {[%clk 0:03:28.3]} 24. Rxc6 {[%clk 0:04:35.2]} 24... a5 {[%clk
0:03:20.6]} 25. Ne5 {[%clk 0:04:33.9]} 25... a4 {[%clk 0:03:14.3]} 26. g4 {[%clk
0:04:31.7]} 26... axb3 {[%clk 0:03:08.8]} 27. axb3 {[%clk 0:04:31.6]} 27... Ra8
{[%clk 0:03:04.3]} 28. h4 {[%clk 0:04:30.4]} 28... Ra2 {[%clk 0:02:40.1]} 29. f3
{[%clk 0:04:15.2]} 29... Nd5 {[%clk 0:02:31.8]} 30. Rc8+ {[%clk 0:04:13.3]}
30... Kh7 {[%clk 0:02:30.2]} 31. Nxf7 {[%clk 0:04:12.6]} 31... Nxe3 {[%clk
0:02:14.7]} 32. h5 {[%clk 0:04:11.5]} 32... g6 {[%clk 0:02:09.9]} 33. Ne5 {[%clk
0:04:05.7]} 33... gxh5 {[%clk 0:01:59.4]} 34. Rc7+ {[%clk 0:04:04.9]} 34... Kg8
{[%clk 0:01:55.9]} 35. gxh5 {[%clk 0:04:04.8]} 35... Rg2+ {[%clk 0:01:47.2]} 36.
Kh1 {[%clk 0:04:03.3]} 36... Rg5 {[%clk 0:01:39.8]} 37. f4 {[%clk 0:04:00.5]}
37... Rxh5+ {[%clk 0:01:38.2]} 38. Kg1 {[%clk 0:03:59.5]} 38... Rh4 {[%clk
0:01:28.5]} 39. Kf2 {[%clk 0:03:56.7]} 39... Nd5 {[%clk 0:01:20.2]} 40. Kg3
{[%clk 0:03:55.6]} 40... Rxf4 {[%clk 0:01:14.7]} 41. Rc6 {[%clk 0:03:53.5]}
41... Rxd4 {[%clk 0:01:02.6]} 42. Rxe6 {[%clk 0:03:29.3]} 42... Rb4 {[%clk
0:00:56.8]} 43. Rd6 {[%clk 0:03:25.2]} 43... Rxb3+ {[%clk 0:00:53.3]} 44. Kh4
{[%clk 0:03:24.6]} 44... Ne3 {[%clk 0:00:35.4]} 45. Rd7 {[%clk 0:03:20.9]} 45...
Nf5+ {[%clk 0:00:28.3]} 46. Kh5 {[%clk 0:03:14.7]} 46... Ng3+ {[%clk 0:00:26.7]}
47. Kg6 {[%clk 0:03:13.5]} 47... Kf8 {[%clk 0:00:22.1]} 48. Ng4 {[%clk
0:03:06.9]} 48... b4 {[%clk 0:00:19]} 49. Nf6 {[%clk 0:03:05.9]} 49... Rb1
{[%clk 0:00:14.6]} 50. Rf7# {[%clk 0:03:04.9]} 1-0